lending/lending_fUSD_20260330
["ID","MTS","AMOUNT","RATE_DAILY","PERIOD"]
[419072178,1774833040954,-151.0,0.0001,2]
[419072179,1774833040964,-151.0,0.0001,2]
[419072180,1774833040974,-151.0,0.0001,2]
[419072181,1774833040984,-151.0,0.0001,2]
[419072183,1774833040996,-151.0,0.0001,2]
[419072185,1774833041006,-151.0,0.0001,2]
[419072186,1774833041016,-217.36103779,0.0001,2]
[419072187,1774833041027,-207.78868459,0.0001,2]
[419072188,1774833041037,-207.78868459,0.0001,2]
[419072189,1774833041047,-153.0,0.00010092,3]
[419072190,1774833041059,-261.48805615,0.000101,2]
[419072191,1774833041069,-163.0,0.00010191,3]
[419072192,1774833041078,-413.42635728,0.00010205,2]
[419072193,1774833041088,-255.0,0.00010311,2]
[419072194,1774833041098,-200.0,0.00010548,2]
[419072195,1774833041108,-151.0,0.00010548,2]
[419072196,1774833041120,-270.07601474,0.000107,2]
[419072197,1774833041134,-2351.0,0.00010714,2]
[419072198,1774833041144,-1003.62711839,0.0001075,30]
[419072199,1774833041155,-587.0,0.00010761,2]
[419072200,1774833041164,-242.88,0.00010801,2]
[419072201,1774833041175,-189.76,0.00010833,2]
[419072202,1774833041187,-153.0,0.00010886,3]
[419072203,1774833041197,-2718.86754478,0.000109,2]
[419072204,1774833041208,-2718.86754478,0.000109,2]
[419072205,1774833041219,-166.66,0.00010959,2]
[419072206,1774833041231,-168.31887754,0.00010959,2]
[419072207,1774833041240,-151.0,0.00011003,2]
[419072208,1774833041250,-166.66,0.00011068,2]
[419072209,1774833041260,-200.0,0.00011096,2]
[419072210,1774833041270,-5620.4147506,0.00011099,2]
[419072211,1774833041279,-5620.41475057,0.00011099,2]
[419072212,1774833041289,-5620.41475057,0.00011099,2]
[419072213,1774833041298,-3774.88240901,0.00011099,2]
[419072214,1774833041308,-3774.88240895,0.00011099,2]
[419072215,1774833041318,-3774.88240895,0.00011099,2]
[419072216,1774833041327,-196.7906,0.000111,2]
[419072217,1774833041337,-2718.86754478,0.00011174,2]
[419072218,1774833041347,-166.66,0.00011178,2]
[419072219,1774833041357,-166.66,0.00011288,2]
[419072220,1774833041367,-433.0,0.00011342,2]
[419072221,1774833041376,-166.66,0.00011397,2]
[419072222,1774833041387,-250.0,0.00011419,2]
[419072223,1774833041396,-151.0,0.00011486,2]
[419072224,1774833041406,-5620.41475057,0.00011489,2]
[419072225,1774833041415,-3774.88240895,0.00011489,2]
[419072226,1774833041431,-1874.7,0.00011507,2]
[419072227,1774833041441,-166.66,0.00011507,2]
[419072228,1774833041451,-252.371263,0.00011549,2]
[419072229,1774833041461,-200.0,0.00011644,2]
[419072230,1774833041471,-153.0,0.0001168,3]
[419072231,1774833041481,-3292.0,0.00011785,2]
[419072232,1774833041491,-154.68,0.00011834,2]
[419072233,1774833041500,-823.0,0.00011838,2]
[419072234,1774833041510,-163.0,0.00011878,3]
[419072235,1774833041520,-4252.0,0.000121,2]
[419072236,1774833041531,-200.0,0.00012116,2]
[419072237,1774833041541,-2718.86754478,0.00012119,2]
[419072238,1774833041551,-5620.41475057,0.00012224,2]
[419072239,1774833041561,-3774.88240895,0.00012224,2]
[419072240,1774833041571,-843.69,0.00012357,2]
[419072241,1774833041580,-4178.39,0.00012397,2]
[419072242,1774833041590,-153.0,0.00012473,3]
[419072243,1774833041600,-736.0,0.00012476,2]
[419072244,1774833041610,-258.1771,0.000125,2]
[419072245,1774833041619,-5534.0,0.000125,3]
[419072246,1774833041629,-150.0,0.000125,2]
[419072247,1774833041639,-154.68,0.00012573,2]
[419072248,1774833041649,-404.10204459,0.000126,2]
[419072249,1774833041659,-1416.99036534,0.000126,2]
[419072250,1774833041669,-11496.42161442,0.000126,2]
[419072251,1774833041679,-1000.0,0.00012686,2]
[419072252,1774833041688,-5534.0,0.000128,5]
[419072253,1774833041699,-500.0,0.00012859,2]
[419072254,1774833041708,-209.40437684,0.00012859,2]
[419072255,1774833041718,-151.0,0.00012859,2]
[419072256,1774833041728,-500.0,0.00012859,2]
[419072257,1774833041737,-500.0,0.00012859,2]
[419072258,1774833041747,-500.0,0.00012859,2]
[419072259,1774833041758,-500.0,0.00012859,2]
[419072260,1774833041768,-1428.38747117,0.00012859,2]
[419072261,1774833041778,-500.0,0.00012859,2]
[419072262,1774833041787,-500.0,0.00012859,2]
[419072263,1774833041797,-9552.16786547,0.00012859,2]
[419072264,1774833041806,-500.0,0.00012859,2]
[419072265,1774833041816,-578.20924308,0.00012859,2]
[419072266,1774833041826,-500.0,0.00012859,2]
[419072267,1774833041836,-500.0,0.00012859,2]
[419072268,1774833041846,-500.0,0.00012859,2]
[419072269,1774833041856,-500.0,0.00012859,2]
[419072270,1774833041865,-500.0,0.00012859,2]
[419072271,1774833041875,-500.0,0.00012859,2]
[419072272,1774833041885,-500.0,0.00012859,2]
[419072273,1774833041895,-500.0,0.00012859,2]
[419072274,1774833041905,-500.0,0.00012859,2]
[419072275,1774833041914,-500.0,0.00012859,2]
[419072276,1774833041925,-500.0,0.00012859,2]
[419072277,1774833041936,-500.0,0.00012859,2]
[419072278,1774833041947,-209.40437684,0.00012859,2]
[419072279,1774833041958,-500.0,0.00012859,2]
[419072280,1774833041968,-500.0,0.00012859,2]
[419072281,1774833041978,-500.0,0.00012859,2]
[419072282,1774833041988,-151.0,0.00012859,2]
[419072283,1774833041998,-500.0,0.00012859,2]
[419072284,1774833042008,-500.0,0.00012859,2]
[419072285,1774833042019,-500.0,0.00012859,2]
[419072286,1774833042028,-174.61919141,0.00012859,2]
[419072287,1774833042038,-500.0,0.00012859,2]
[419072288,1774833042048,-500.0,0.00012859,2]
[419072289,1774833042058,-500.0,0.00012859,2]
[419072290,1774833042067,-500.0,0.00012859,2]
[419072291,1774833042078,-500.0,0.00012859,2]
[419072292,1774833042087,-500.0,0.00012859,2]
[419072293,1774833042097,-500.0,0.00012859,2]
[419072294,1774833042107,-250.0,0.00012859,2]
[419072295,1774833042117,-500.0,0.00012859,2]
[419072296,1774833042127,-200.0,0.00012859,2]
[419072297,1774833042137,-250.0,0.00012859,2]
[419072298,1774833042146,-250.0,0.00012859,2]
[419072299,1774833042157,-250.0,0.00012859,2]
[419072300,1774833042167,-250.0,0.00012859,2]
[419072301,1774833042179,-250.0,0.00012859,2]
[419072302,1774833042188,-250.0,0.00012859,2]
[419072303,1774833042198,-250.0,0.00012859,2]
[419072304,1774833042207,-250.0,0.00012859,2]
[419072305,1774833042218,-250.0,0.00012859,2]
[419072306,1774833042228,-250.0,0.00012859,2]
[419072307,1774833042239,-743.50770149,0.00012859,2]
[419072308,1774833042250,-262.90206542,0.00012859,2]
[419072309,1774833042261,-500.0,0.00012859,2]
[419072310,1774833042271,-500.0,0.00012859,2]
[419072311,1774833042280,-500.0,0.00012859,2]
[419072312,1774833042291,-500.0,0.00012859,2]
[419072313,1774833042301,-500.0,0.00012859,2]
[419072314,1774833042311,-15983.441721,0.00012871,2]
[419072315,1774833042322,-450.731563,0.00012871,2]
[419072316,1774833042334,-500.0,0.00012914,2]
[419072317,1774833042343,-9905.5980765,0.00012914,2]
[419072318,1774833042354,-151.0,0.00012914,2]
[419072319,1774833042364,-272.62944185,0.00012914,2]
[419072320,1774833042373,-5620.41475057,0.0001296,2]
[419072321,1774833042383,-3774.88240895,0.0001296,2]
[419072322,1774833042393,-4609.0,0.00012963,2]
[419072323,1774833042403,-500.0,0.00012969,2]
[419072324,1774833042413,-10272.10520533,0.00012969,2]
[419072325,1774833042422,-151.0,0.00012969,2]
[419072326,1774833042433,-282.71673119,0.00012969,2]
[419072327,1774833042445,-250.0,0.00013,2]
[419072329,1774833042455,-1152.0,0.00013021,2]
[419072330,1774833042464,-500.0,0.00013024,2]
[419072332,1774833042474,-10652.17309792,0.00013024,2]
[419072333,1774833042484,-151.0,0.00013024,2]
[419072334,1774833042494,-293.17725025,0.00013024,2]
[419072335,1774833042505,-2718.86754478,0.00013065,2]
[419072336,1774833042515,-500.0,0.00013079,2]
[419072337,1774833042525,-11046.30350255,0.00013079,2]
[419072338,1774833042535,-151.0,0.00013079,2]
[419072339,1774833042545,-304.02480851,0.00013079,2]
[419072340,1774833042555,-500.0,0.00013134,2]
[419072341,1774833042564,-11455.01673214,0.00013134,2]
[419072342,1774833042574,-151.0,0.00013134,2]
[419072343,1774833042584,-315.27372642,0.00013134,2]
[419072344,1774833042594,-500.0,0.00013189,2]
[419072345,1774833042603,-11878.85235123,0.00013189,2]
[419072346,1774833042613,-151.0,0.00013189,2]
[419072348,1774833042622,-326.9388543,0.00013189,2]
[419072350,1774833042632,-500.0,0.00013244,2]
[419072352,1774833042642,-12318.36988823,0.00013244,2]
[419072353,1774833042652,-151.0,0.00013244,2]
[419072354,1774833042662,-339.03559191,0.00013244,2]
[419072355,1774833042672,-153.0,0.00013267,3]
[419072356,1774833042682,-500.0,0.00013299,2]
[419072357,1774833042692,-12774.14957409,0.00013299,2]
[419072358,1774833042702,-151.0,0.00013299,2]
[419072359,1774833042712,-154.68,0.00013313,2]
[419072360,1774833042722,-500.0,0.00013354,2]
[419072361,1774833042732,-13246.79310833,0.00013354,2]
[419072362,1774833042742,-151.0,0.00013354,2]
[419072363,1774833042752,-217.15233878,0.00013407,2]
[419072364,1774833042762,-151.0,0.00013407,2]
[419072365,1774833042772,-1481.23780761,0.00013407,2]
[419072366,1774833042781,-287.02861488,0.00013407,2]
[419072367,1774833042791,-181.08010149,0.00013407,2]
[419072368,1774833042801,-200.0,0.00013407,2]
[419072369,1774833042812,-771.01748645,0.00013407,2]
[419072370,1774833042824,-331.03307376,0.00013407,2]
[419072371,1774833042836,-500.0,0.00013409,2]
[419072372,1774833042847,-4184.75658788,0.00013409,2]
[419072373,1774833042856,-151.0,0.00013409,2]
[419072374,1774833042865,-3240.0,0.00013425,2]
[419072375,1774833042875,-152.0,0.00013502,3]
[419072376,1774833042884,-163.0,0.00013565,3]
[419072377,1774833042894,-7182.0,0.000136,7]
[419072378,1774833042904,-5620.41475057,0.00013695,2]
[419072379,1774833042914,-3774.88240895,0.00013695,2]
[419072380,1774833042924,-500.0,0.00013698,2]
[419072381,1774833042935,-500.0,0.00013698,2]
[419072382,1774833042947,-500.0,0.00013698,2]
[419072383,1774833042956,-500.0,0.00013698,2]
[419072384,1774833042966,-500.0,0.00013698,2]
[419072385,1774833042975,-500.0,0.00013698,2]
[419072386,1774833042984,-500.0,0.00013698,2]
[419072387,1774833042994,-500.0,0.00013698,2]
[419072388,1774833043003,-500.0,0.00013698,2]
[419072389,1774833043013,-500.0,0.00013698,2]
[419072390,1774833043023,-500.0,0.00013698,2]
[419072391,1774833043033,-500.0,0.00013698,2]
[419072392,1774833043043,-500.0,0.00013698,2]
[419072393,1774833043054,-500.0,0.00013698,2]
[419072394,1774833043063,-500.0,0.00013698,2]
[419072395,1774833043074,-500.0,0.00013698,2]
[419072396,1774833043084,-500.0,0.00013698,2]
[419072397,1774833043094,-500.0,0.00013698,2]
[419072398,1774833043104,-500.0,0.00013698,2]
[419072399,1774833043114,-500.0,0.00013698,2]
[419072400,1774833043123,-500.0,0.00013698,2]
[419072401,1774833043133,-500.0,0.00013698,2]
[419072402,1774833043143,-500.0,0.00013698,2]
[419072403,1774833043154,-500.0,0.00013698,2]
[419072404,1774833043164,-500.0,0.00013698,2]
[419072405,1774833043174,-500.0,0.00013698,2]
[419072406,1774833043183,-500.0,0.00013698,2]
[419072407,1774833043193,-500.0,0.00013698,2]
[419072408,1774833043202,-500.0,0.00013698,2]
[419072409,1774833043212,-500.0,0.00013698,2]
[419072411,1774833043222,-500.0,0.00013698,2]
[419072413,1774833043232,-500.0,0.00013698,2]
[419072414,1774833043242,-500.0,0.00013698,2]
[419072415,1774833043253,-500.0,0.00013698,2]
[419072416,1774833043263,-500.0,0.00013698,2]
[419072417,1774833043273,-500.0,0.00013698,2]
[419072418,1774833043283,-470.75659377,0.00013698,2]
[419072419,1774833043293,-500.0,0.00013698,2]
[419072420,1774833043302,-500.0,0.00013698,2]
[419072421,1774833043312,-500.0,0.00013698,2]
[419072422,1774833043322,-500.0,0.00013698,2]
[419072423,1774833043332,-500.0,0.00013698,2]
[419072424,1774833043342,-518.76747318,0.00013698,2]
[419072425,1774833043351,-500.0,0.00013698,2]
[419072426,1774833043361,-500.0,0.00013698,2]
[419072427,1774833043371,-500.0,0.00013698,2]
[419072428,1774833043381,-500.0,0.00013698,2]
[419072429,1774833043391,-500.0,0.00013698,2]
[419072430,1774833043401,-500.0,0.00013698,2]
[419072431,1774833043410,-500.0,0.00013698,2]
[419072432,1774833043420,-500.0,0.00013698,2]
[419072433,1774833043430,-500.0,0.00013698,2]
[419072434,1774833043439,-500.0,0.00013698,2]
[419072435,1774833043449,-1061.37,0.00013698,2]
[419072436,1774833043459,-500.0,0.00013698,2]
[419072437,1774833043469,-1061.37,0.00013698,2]
[419072438,1774833043481,-1061.37,0.00013698,2]
[419072439,1774833043490,-1061.37,0.00013698,2]
[419072440,1774833043500,-1061.37,0.00013698,2]
[419072441,1774833043510,-1061.37,0.00013698,2]
[419072442,1774833043520,-1061.37,0.00013698,2]
[419072443,1774833043530,-1061.37,0.00013698,2]
[419072444,1774833043540,-1061.37,0.00013698,2]
[419072445,1774833043550,-1061.37,0.00013698,2]
[419072446,1774833043560,-1061.37,0.00013698,2]
[419072447,1774833043570,-1061.37,0.00013698,2]
[419072448,1774833043580,-1061.37,0.00013698,2]
[419072449,1774833043590,-1061.37,0.00013698,2]
[419072450,1774833043600,-1061.37,0.00013698,2]
[419072451,1774833043610,-1061.37,0.00013698,2]
[419072452,1774833043619,-1061.37,0.00013698,2]
[419072453,1774833043628,-1061.37,0.00013698,2]
[419072454,1774833043638,-500.0,0.00013698,2]
[419072455,1774833043647,-500.0,0.00013698,2]
[419072456,1774833043657,-500.0,0.00013698,2]
[419072457,1774833043666,-500.0,0.00013698,2]
[419072458,1774833043676,-500.0,0.00013698,2]
[419072459,1774833043685,-500.0,0.00013698,2]
[419072460,1774833043694,-500.0,0.00013698,2]
[419072461,1774833043704,-500.0,0.00013698,2]
[419072462,1774833043713,-500.0,0.00013698,2]
[419072463,1774833043723,-500.0,0.00013698,2]
[419072464,1774833043732,-500.0,0.00013698,2]
[419072465,1774833043742,-500.0,0.00013698,2]
[419072466,1774833043752,-500.0,0.00013698,2]
[419072467,1774833043762,-500.0,0.00013698,2]
[419072468,1774833043772,-500.0,0.00013698,2]
[419072469,1774833043781,-500.0,0.00013698,2]
[419072470,1774833043791,-500.0,0.00013698,2]
[419072471,1774833043800,-272.04,0.00013698,2]
[419072472,1774833043809,-500.0,0.00013698,2]
[419072473,1774833043819,-500.0,0.00013698,2]
[419072474,1774833043828,-500.0,0.00013698,2]
[419072475,1774833043837,-551.92950635,0.00013698,2]
[419072476,1774833043846,-500.0,0.00013698,2]
[419072477,1774833043856,-500.0,0.00013698,2]
[419072478,1774833043866,-500.0,0.00013698,2]
[419072479,1774833043875,-500.0,0.00013698,2]
[419072480,1774833043884,-500.0,0.00013698,2]
[419072481,1774833043894,-500.0,0.00013698,2]
[419072482,1774833043903,-500.0,0.00013698,2]
[419072483,1774833043913,-500.0,0.00013698,2]
[419072484,1774833043922,-500.0,0.00013698,2]
[419072485,1774833043931,-500.0,0.00013698,2]
[419072486,1774833043941,-500.0,0.00013698,2]
[419072487,1774833043951,-500.0,0.00013698,2]
[419072488,1774833043960,-500.0,0.00013698,2]
[419072489,1774833043970,-500.0,0.00013698,2]
[419072490,1774833043979,-500.0,0.00013698,2]
[419072491,1774833043989,-500.0,0.00013698,2]
[419072492,1774833043999,-500.0,0.00013698,2]
[419072493,1774833044009,-500.0,0.00013698,2]
[419072494,1774833044019,-500.0,0.00013698,2]
[419072495,1774833044029,-500.0,0.00013698,2]
[419072496,1774833044039,-500.0,0.00013698,2]
[419072497,1774833044049,-159.6,0.00013698,2]
[419072498,1774833044059,-500.0,0.00013698,2]
[419072499,1774833044069,-500.0,0.00013698,2]
[419072500,1774833044079,-500.0,0.00013698,2]
[419072501,1774833044089,-500.0,0.00013698,2]
[419072502,1774833044099,-500.0,0.00013698,2]
[419072503,1774833044109,-500.0,0.00013698,2]
[419072504,1774833044120,-500.0,0.00013698,2]
[419072505,1774833044130,-500.0,0.00013698,2]
[419072506,1774833044139,-500.0,0.00013698,2]
[419072507,1774833044149,-1702.59,0.00013699,2]
[419072508,1774833044159,-500.0,0.00013699,2]
[419072509,1774833044169,-500.0,0.00013699,2]
[419072510,1774833044558,-239.03013435,0.00013699,2]
[419072511,1774833044568,-500.0,0.00013699,2]
[419072512,1774833044577,-500.76787534,0.00013699,2]
[419072513,1774833044587,-500.0,0.00013699,2]
[419072514,1774833044597,-500.0,0.00013699,2]
[419072515,1774833044606,-500.0,0.00013699,2]
[419072516,1774833044616,-500.0,0.00013699,2]
[419072517,1774833044625,-500.0,0.00013699,2]
[419072518,1774833044635,-500.0,0.00013699,2]
[419072519,1774833044644,-500.0,0.00013699,2]
[419072520,1774833044654,-210.78762468,0.00013699,2]
[419072521,1774833044663,-500.0,0.00013699,2]
[419072522,1774833044674,-500.0,0.00013699,2]
[419072523,1774833044683,-518.29101627,0.00013699,2]
[419072524,1774833044692,-500.0,0.00013699,2]
[419072525,1774833044703,-500.0,0.00013699,2]
[419072526,1774833044712,-165.28912037,0.00013699,2]
[419072527,1774833044721,-2304.24,0.000137,2]
[419072528,1774833044732,-354.69381036,0.000137,2]
[419072529,1774833044742,-220.41161421,0.000137,2]
[419072530,1774833044752,-15555.58,0.000137,2]
[419072531,1774833044762,-3633.96,0.000137,2]
[419072532,1774833044773,-3135.01,0.000137,2]
[419072533,1774833044783,-3747.67,0.000137,2]
[419072534,1774833044792,-1038.7,0.000137,2]
[419072535,1774833044803,-523.29,0.000137,2]
[419072536,1774833044813,-523.29,0.000137,2]
[419072537,1774833044823,-523.29,0.000137,2]
[419072538,1774833044835,-523.29,0.000137,2]
[419072539,1774833044846,-523.29,0.000137,2]
[419072540,1774833044855,-1252.0,0.00013722,2]
[419072541,1774833044865,-179.68630464,0.00013769,2]
[419072542,1774833044874,-179.68630464,0.00013769,2]
[419072543,1774833044884,-152.0,0.00013786,4]
[419072544,1774833044893,-959.8630956,0.00013816,2]
[419072545,1774833044902,-160.0,0.00013816,2]
[419072546,1774833044912,-160.0,0.00013816,2]
[419072547,1774833044922,-5534.0,0.00013892,5]
[419072548,1774833044933,-181.14,0.00013897,2]
[419072549,1774833044943,-338.7124,0.000139,2]
[419072550,1774833044953,-8400.0,0.000139,5]
[419072551,1774833044963,-3900.0,0.000139,5]
[419072552,1774833044973,-242.88,0.0001394,2]
[419072553,1774833044982,-225.18697532,0.00013955,2]
[419072554,1774833044991,-151.0,0.00013955,2]
[419072555,1774833045001,-1536.04360649,0.00013955,2]
[419072556,1774833045011,-187.78006525,0.00013955,2]
[419072557,1774833045020,-200.0,0.00013955,2]
[419072558,1774833045030,-799.54513345,0.00013955,2]
[419072559,1774833045040,-202.38,0.0001396,2]
[419072560,1774833045050,-189.76,0.00013995,2]
[419072561,1774833045060,-204.57168,0.00014,2]
[419072562,1774833045070,-2718.86754478,0.0001401,2]
[419072563,1774833045079,-154.68,0.00014052,2]
[419072564,1774833045090,-153.0,0.00014061,3]
[419072565,1774833045100,-152.0,0.00014071,5]
[419072566,1774833045110,-60000.0,0.00014115,2]
[419072567,1774833045120,-3000.0,0.00014137,2]
[419072568,1774833045131,-2500.0,0.00014137,2]
[419072569,1774833045141,-1000.0,0.0001423,7]
[419072570,1774833045150,-1000.0,0.00014247,2]
[419072571,1774833045159,-500.0,0.00014247,2]
[419072572,1774833045169,-501.65522073,0.00014247,2]
[419072573,1774833045178,-1000.0,0.00014247,2]
[419072574,1774833045188,-1000.0,0.00014247,2]
[419072575,1774833045197,-1000.0,0.00014247,2]
[419072576,1774833045206,-1000.0,0.00014247,2]
[419072577,1774833045216,-500.0,0.00014247,2]
[419072578,1774833045226,-1000.0,0.00014247,2]
[419072579,1774833045237,-1000.0,0.00014247,2]
[419072580,1774833045246,-6453.0,0.0001426,2]
[419072582,1774833045257,-1115.0,0.00014293,2]
[419072584,1774833045267,-1613.0,0.00014323,2]
[419072585,1774833045277,-152.0,0.00014356,6]
[419072586,1774833045287,-1702.59,0.00014384,2]
[419072587,1774833045297,-6013.0,0.00014411,2]
[419072588,1774833045306,-2468.0,0.00014411,2]
[419072589,1774833045316,-3765.0,0.00014411,2]
[419072590,1774833045326,-5620.41475057,0.0001443,2]
[419072591,1774833045335,-3774.88240895,0.0001443,2]
[419072592,1774833045345,-163.21224687,0.00014473,2]
[419072593,1774833045355,-233.51889341,0.00014503,2]
[419072594,1774833045365,-151.0,0.00014503,2]
[419072595,1774833045374,-1592.87721993,0.00014503,2]
[419072596,1774833045384,-194.72792766,0.00014503,2]
[419072597,1774833045394,-200.0,0.00014503,2]
[419072598,1774833045404,-829.12830338,0.00014503,2]
[419072599,1774833045414,-1038.7,0.000146,2]
[419072600,1774833045424,-152.0,0.00014641,7]
[419072601,1774833045434,-3633.96,0.000147,2]
[419072602,1774833045443,-3135.01,0.000147,2]
[419072603,1774833045453,-3747.67,0.000147,2]
[419072604,1774833045464,-217.36103779,0.00014785,2]
[419072605,1774833045474,-154.68,0.00014792,2]
[419072606,1774833045484,-1500.0,0.00014795,2]
[419072607,1774833045493,-500.0,0.00014795,2]
[419072608,1774833045503,-500.0,0.00014795,2]
[419072609,1774833045512,-1500.0,0.00014795,2]
[419072610,1774833045522,-925.66563804,0.00014795,2]
[419072611,1774833045532,-6927.0,0.000148,5]
[419072612,1774833045542,-15555.58,0.000148,2]
[419072613,1774833045551,-1577.560472,0.00014801,7]
[419072614,1774833045561,-502.96299207,0.00014825,3]
[419072615,1774833045571,-153.0,0.00014855,3]
[419072616,1774833045580,-378.556892,0.00014863,7]
[419072617,1774833045590,-181.14,0.00014894,2]
[419072618,1774833045599,-242.88,0.0001492,2]
[419072619,1774833045609,-152.0,0.00014926,8]
[419072620,1774833045618,-2718.86754478,0.00014955,2]
[419072621,1774833045627,-189.76,0.00014967,2]
[419072622,1774833045637,-196.80909656,0.00014985,2]
[419072623,1774833045646,-279.06757239,0.00014994,7]
[419072624,1774833045656,-300.0,0.00015,2]
[419072625,1774833045665,-3041.97635383,0.00015,2]
[419072626,1774833045675,-500.0,0.00015006,2]
[419072627,1774833045685,-1115.0,0.00015045,2]
[419072628,1774833045694,-310.58865107,0.00015051,2]
[419072629,1774833045704,-151.0,0.00015051,2]
[419072630,1774833045713,-1651.81367706,0.00015051,2]
[419072631,1774833045723,-201.93286099,0.00015051,2]
[419072632,1774833045732,-200.0,0.00015051,2]
[419072633,1774833045742,-859.80605061,0.00015051,2]
[419072634,1774833045751,-792.8,0.00015068,2]
[419072635,1774833045760,-1702.59,0.00015068,2]
[419072636,1774833045770,-1775.0,0.00015085,2]
[419072637,1774833045779,-2304.24,0.000151,2]
[419072638,1774833045788,-2129.0,0.000151,2]
[419072639,1774833045799,-880.69,0.00015118,2]
[419072640,1774833045810,-250.0,0.00015146,2]
[419072641,1774833045820,-150.0,0.00015146,2]
[419072642,1774833045830,-150.0,0.00015146,2]
[419072643,1774833045840,-150.0,0.00015146,2]
[419072644,1774833045851,-150.0,0.00015146,2]
[419072645,1774833045860,-150.0,0.00015146,2]
[419072646,1774833045870,-150.0,0.00015146,2]
[419072647,1774833045880,-150.0,0.00015146,2]
[419072648,1774833045890,-1346.0,0.00015146,2]
[419072649,1774833045900,-1049.641,0.00015146,2]
[419072650,1774833045911,-621.0,0.00015146,2]
[419072651,1774833045920,-3518.0,0.00015146,2]
[419072652,1774833045932,-1262.0,0.00015146,2]
[419072653,1774833045944,-150.0,0.00015146,2]
[419072654,1774833045956,-1216.0,0.00015146,2]
[419072655,1774833045966,-925.0,0.00015146,2]
[419072656,1774833045976,-1775.0,0.00015152,2]
[419072657,1774833045987,-1570.0,0.00015162,2]
[419072658,1774833045996,-5620.41475057,0.00015165,2]
[419072659,1774833046006,-3774.88240895,0.00015165,2]
[419072660,1774833046016,-1061.37,0.00015205,2]
[419072661,1774833046025,-152.0,0.00015211,9]
[419072662,1774833046035,-163.0,0.00015252,3]
[419072663,1774833046044,-1775.0,0.00015258,2]
[419072664,1774833046054,-1775.0,0.00015283,2]
[419072665,1774833046063,-251.9509784,0.000153,2]
[419072667,1774833046072,-444.3697,0.000153,2]
[419072668,1774833046081,-350.0,0.00015328,2]
[419072670,1774833046091,-2000.0,0.00015342,2]
[419072672,1774833046100,-2000.0,0.00015342,2]
[419072674,1774833046110,-879.95,0.00015392,2]
[419072676,1774833046119,-2807.0,0.000154,2]
[419072678,1774833046128,-1570.0,0.000154,2]
[419072679,1774833046138,-512.13664836,0.000154,2]
[419072681,1774833046150,-436.49,0.00015414,2]
[419072683,1774833046159,-234.59212621,0.00015434,2]
[419072685,1774833046169,-1478.62471113,0.00015456,2]
[419072687,1774833046179,-1188.69408308,0.00015465,2]
[419072689,1774833046188,-152.0,0.00015496,10]
[419072691,1774833046198,-1600.0,0.000155,5]
[419072692,1774833046207,-700.0,0.000155,5]
[419072694,1774833046216,-1230.38457987,0.000155,2]
[419072696,1774833046226,-1038.7,0.000155,2]
[419072698,1774833046236,-3000.0,0.00015507,2]
[419072700,1774833046246,-2500.0,0.00015507,2]
[419072702,1774833046256,-1775.0,0.00015529,2]
[419072704,1774833046265,-154.68,0.00015532,2]
[419072705,1774833046275,-599.60298507,0.00015598,2]
[419072707,1774833046284,-151.0,0.00015599,2]